bitfinex/quotes_ETHUSD_20250329
["timestamp","ask_amount","ask_price","bid_price","bid_amount"]
[1743283462362,0.33916386,1827.2,1826.9,5.47374]
[1743283462572,0.33916386,1827.2,1826.9,10.94737]
[1743283465404,0.33916386,1827.2,1826.9,5.47363]
[1743283466802,0.33916386,1827.2,1826.9,10.94716]
[1743283467105,0.33916386,1827.2,1826.9,10.94706]
[1743283470999,1.68311599,1827.2,1826.9,10.94706]
[1743283472004,1.68311599,1827.2,1827.0,5.47343]
[1743283472714,0.27075358,1827.2,1827.1,5.47315]
[1743283472880,0.27075358,1827.2,1827.1,6.30435]
[1743283473086,5.244,1827.5,1827.4,5.47225]
[1743283473310,5.244,1827.5,1827.3,5.47249]
[1743283473311,6.58795213,1827.5,1827.3,5.47249]
[1743283473503,1.34395213,1827.4,1827.3,5.47249]
[1743283476430,1.34395213,1827.5,1827.4,5.47225]
[1743283476607,1.34395213,1827.6,1827.4,5.47225]
[1743283478616,5.31239884,1827.7,1827.5,5.47193]
[1743283478820,1.34395213,1827.7,1827.5,5.47193]
[1743283479027,1.34395213,1827.6,1827.5,5.47193]
[1743283479306,1.34395213,1827.6,1827.5,6.566347]
[1743283480206,1.34395213,1827.7,1827.5,6.566347]
[1743283482510,0.26630142,1827.6,1827.5,6.566347]
[1743283483320,0.26630142,1827.6,1827.5,7.316847]
[1743283483516,1.34395213,1827.8,1827.6,5.47165]
[1743283483717,1.34395213,1827.7,1827.6,5.47165]
[1743283483921,1.61226014,1827.7,1827.6,5.47165]
[1743283489716,0.26830801,1827.7,1827.6,5.47165]
[1743283498235,1.34395213,1827.9,1827.7,5.47112]
[1743283498435,0.26906026,1827.8,1827.7,5.47112]
[1743283498730,6.65334091,1828.0,1827.9,5.47075]
[1743283498934,6.65334091,1828.0,1827.8,5.47101]
[1743283498935,6.58495213,1828.1,1827.8,6.29383]
[1743283499135,1.34395213,1828.0,1827.8,6.29383]
[1743283499570,1.34395213,1828.0,1827.8,11.76467]
[1743283500164,1.34395213,1828.0,1827.9,5.47075]
[1743283500466,3.06838031,1828.2,1827.9,5.47075]
[1743283500662,3.06838031,1828.2,1828.1,5.47016]
[1743283500838,28.965,1829.2,1828.1,0.8229]
[1743283501040,5.46896,1828.5,1828.1,6.29291]
[1743283501239,1.34395213,1828.2,1828.0,5.47028]
[1743283501438,1.34395213,1828.1,1828.0,5.47028]
[1743283502648,1.34395213,1828.1,1827.9,5.47067]
[1743283503063,1.34395213,1828.1,1827.9,10.9412]
[1743283503245,1.34395213,1828.1,1828.0,5.47045]
[1743283504872,1.34395213,1828.1,1827.9,5.47053]
[1743283505579,1.34395213,1828.1,1827.9,10.94115]
[1743283506952,1.34395213,1828.1,1827.9,5.47053]
[1743283508092,1.34395213,1828.0,1827.8,5.47086]
[1743283508245,1.34395213,1828.0,1827.7,5.47118]
[1743283508246,1.34395213,1827.9,1827.7,5.47118]
[1743283508678,1.34395213,1827.9,1827.8,5.47105]
[1743283508884,1.34395213,1828.0,1827.8,5.47105]
[1743283509385,1.34395213,1827.9,1827.6,5.47163]
[1743283509686,1.34395213,1827.7,1827.5,5.47179]
[1743283510084,1.34395213,1827.7,1827.4,5.47212]
[1743283510288,1.41234757,1827.7,1827.4,5.47212]
[1743283510447,1.41234757,1827.7,1827.5,5.47193]
[1743283512474,0.25204164,1827.6,1827.5,5.47193]
[1743283513375,1.59599377,1827.6,1827.3,5.47243]
[1743283513573,1.41235548,1827.5,1827.3,5.47243]
[1743283514075,0.25204164,1827.4,1827.3,5.47243]
[1743283515255,1.59599377,1827.4,1827.2,5.47262]
[1743283515451,1.59599377,1827.4,1827.2,10.94534]
[1743283515754,1.34395213,1827.3,1826.8,0.777]
[1743283516075,1.34395213,1827.2,1827.0,5.47316]
[1743283516271,0.25204164,1827.1,1827.0,5.47316]
[1743283516469,1.34395213,1827.2,1827.0,5.47316]
[1743283516664,0.25204164,1827.1,1827.0,5.47316]
[1743283516869,1.34395213,1827.2,1827.0,5.47316]
[1743283517082,0.25204164,1827.1,1827.0,5.47316]
[1743283517280,1.34395213,1827.2,1827.0,5.47316]
[1743283517448,0.25204164,1827.1,1827.0,5.47316]
[1743283517654,1.34395213,1827.2,1827.0,5.47316]
[1743283517882,0.25204164,1827.1,1827.0,5.47316]
[1743283518181,1.34395213,1827.2,1827.0,5.47316]
[1743283518353,1.34395213,1827.1,1827.0,5.47316]
[1743283518555,0.25204164,1827.1,1827.0,5.47316]
[1743283518878,2.30837543,1827.3,1826.9,5.47365]
[1743283519081,0.25204164,1827.2,1826.9,10.94721]
[1743283519478,2.23997207,1827.0,1826.6,6.25165]
[1743283519653,0.06842621,1826.9,1826.8,5.47405]
[1743283519849,0.06842621,1826.9,1826.6,0.777]
[1743283520052,0.25204164,1826.8,1826.7,5.47432]
[1743283520247,0.06842621,1826.9,1826.7,5.47432]
[1743283520579,0.25204164,1826.8,1826.6,6.25158]
[1743283520877,0.25204164,1826.8,1826.3,16.06939631]
[1743283520878,0.25204164,1826.7,1826.4,0.7531]
[1743283521087,0.25204164,1826.7,1826.3,5.47525]
[1743283521252,0.25204164,1826.7,1826.4,5.475]
[1743283521253,0.32047619,1826.7,1826.4,5.475]
[1743283521882,0.32047619,1826.7,1826.5,5.47492]
[1743283522784,0.32047619,1826.7,1826.4,5.475]
[1743283525183,5.24,1826.6,1826.4,5.475]
[1743283525558,0.24004115,1826.5,1826.4,5.475]
[1743283527186,0.24004115,1826.5,1826.3,5.4755]
[1743283527793,0.24004115,1826.5,1826.3,10.95084]
[1743283528501,0.24004115,1826.5,1826.4,5.47525]
[1743283539215,0.24004115,1826.5,1826.4,6.570309]
[1743283539422,0.24004115,1826.5,1826.4,7.385309]
[1743283539618,1.41332234,1826.9,1826.7,5.47405]
[1743283539794,1.34489498,1826.9,1826.7,5.47405]
[1743283539993,0.23802924,1826.8,1826.7,5.47405]
[1743283540219,1.34489498,1826.9,1826.7,10.9481]
[1743283541024,0.23633169,1826.8,1826.7,10.9481]
[1743283541405,1.34489498,1826.9,1826.8,5.47405]
[1743283541713,1.41332099,1826.9,1826.8,5.47405]
[1743283542128,1.64965268,1826.9,1826.8,5.47405]
[1743283542527,0.23633169,1826.9,1826.8,5.47405]
[1743283543418,5.308426,1827.1,1826.9,5.47362]
[1743283543626,8.204926,1827.1,1826.9,5.47362]
[1743283545395,0.068426,1827.1,1827.0,5.47345]
[1743283545597,8.308426,1827.1,1826.9,10.94725]
[1743283546338,8.308426,1827.1,1826.9,5.47362]
[1743283547724,8.308426,1827.1,1826.9,10.94713]
[1743283548311,8.308426,1827.1,1826.9,10.94711]
[1743283548523,8.308426,1827.1,1826.9,5.47351]
[1743283549421,8.308426,1827.1,1826.9,10.94706]
[1743283551039,8.308426,1827.1,1827.0,5.47345]
[1743283551711,8.24,1827.1,1827.0,5.47345]
[1743283552032,8.30841827,1827.1,1827.0,5.47345]
[1743283552636,8.24,1827.1,1827.0,5.47345]
[1743283553441,3.0,1827.1,1827.0,5.47345]
[1743283556450,3.06841826,1827.1,1827.0,5.47345]
[1743283557221,3.23840644,1827.1,1827.0,5.47345]
[1743283560118,0.30682467,1827.1,1827.0,5.47345]
[1743283560524,0.30682467,1827.1,1826.9,6.29411]
[1743283561021,0.30682467,1827.1,1826.8,5.47403]
[1743283561022,2.24041525,1827.0,1826.8,5.47403]
[1743283561372,0.06842039,1826.9,1826.7,5.47423]
[1743283561529,0.30682683,1826.9,1826.7,10.94844]
[1743283562429,0.30682683,1826.9,1826.7,5.47421]
[1743283562931,1.65127895,1826.9,1826.7,5.47421]
[1743283563133,1.65127895,1826.9,1826.7,10.94835]
[1743283563340,1.34445212,1826.8,1826.6,5.47448]
[1743283563526,1.4128857,1826.7,1826.6,5.47448]
[1743283563726,1.65166953,1826.7,1826.6,5.47448]
[1743283564331,2.34063648,1826.7,1826.5,5.47479]
[1743283564537,1.34445212,1826.6,1826.5,5.47479]
[1743283565026,1.58323595,1826.6,1826.4,5.47522]
[1743283565227,1.58323595,1826.6,1826.5,5.47495]
[1743283565427,1.58323595,1826.6,1826.4,10.95034]
[1743283565627,1.58323595,1826.6,1826.4,5.47512]
[1743283565858,1.34445212,1826.5,1826.4,5.47512]
[1743283566437,1.58323595,1826.5,1826.4,5.47512]
[1743283567057,0.23878383,1826.5,1826.4,5.47512]
[1743283567361,2.99895558,1826.7,1826.4,5.47512]
[1743283567528,0.23878383,1826.5,1826.3,5.47554]
[1743283567729,0.3072243,1826.5,1826.3,5.47554]
[1743283570951,0.3072243,1826.5,1826.4,5.47525]
[1743283571151,0.23878383,1826.5,1826.4,5.47525]
[1743283571335,0.23878383,1826.5,1826.3,5.47554]
[1743283573359,0.23878383,1826.5,1826.3,10.95091]
[1743283574667,0.23878383,1826.5,1826.4,5.47525]
[1743283575240,0.23878383,1826.5,1826.3,10.9508]
[1743283575770,0.23878383,1826.5,1826.3,5.47537]
[1743283576065,0.23878383,1826.5,1826.1,0.05]
[1743283576267,5.30644419,1826.4,1826.1,5.52601]
[1743283576442,0.53064442,1826.3,1826.2,5.47585]
[1743283576643,0.76804495,1826.3,1826.2,5.47585]
[1743283577979,0.76804495,1826.3,1826.1,5.52614]
[1743283578181,0.06845262,1826.2,1826.1,5.52614]
[1743283578673,0.23387878,1826.2,1826.1,5.52614]
[1743283580588,0.23387878,1826.2,1826.1,0.05]
[1743283580884,0.54133187,1826.2,1826.1,0.05]
[1743283581984,3.30745309,1826.2,1826.1,0.05]
[1743283582581,3.5383126,1826.2,1826.1,0.05]
[1743283583454,3.60677187,1826.2,1826.1,0.05]
[1743283587092,9.08262187,1826.2,1826.1,0.05]
[1743283588981,10.42839787,1826.2,1826.1,0.05]
[1743283594290,4.95254787,1826.2,1826.1,0.05]
[1743283597793,5.46785951,1826.2,1826.1,5.52615]
[1743283601397,0.23085951,1826.2,1826.1,5.52615]
[1743283602995,0.23085951,1826.2,1826.1,6.30185]
[1743283603201,0.23085951,1826.2,1826.1,6.35660635]
[1743283603371,6.65122144,1826.5,1826.4,5.47525]
[1743283603568,6.81319509,1826.5,1826.4,5.47525]
[1743283609068,6.88163705,1826.5,1826.4,5.47525]
[1743283610483,1.57619509,1826.5,1826.4,5.47525]
[1743283610675,0.23041909,1826.5,1826.4,5.47525]
[1743283611907,0.23041909,1826.5,1826.3,11.72654]
[1743283612127,1.57619509,1826.5,1826.3,0.7757]
[1743283612402,1.64464164,1826.5,1826.3,6.25114]
[1743283612576,1.64464164,1826.5,1826.4,5.47525]
[1743283612776,0.29886564,1826.5,1826.4,5.47525]
[1743283613601,0.29886564,1826.5,1826.3,6.25114]
[1743283613901,0.23041909,1826.5,1826.3,10.95077]
[1743283614808,0.23041909,1826.5,1826.4,5.47525]
[1743283617011,0.23041909,1826.5,1826.3,5.47533]
[1743283617221,5.47558,1826.3,1826.1,0.05]
[1743283617401,30.58981061,1826.2,1825.6,6.25221]
[1743283617603,1.345776,1825.8,1825.6,6.25221]
[1743283617781,8.235,1826.2,1825.7,5.47716]
[1743283617782,1.345776,1825.9,1825.7,5.47716]
[1743283617982,0.2326839,1825.8,1825.7,10.95429]
[1743283618185,1.41424402,1826.0,1825.7,10.95428]
[1743283618394,0.2326839,1825.9,1825.7,10.95428]
[1743283618594,0.2326839,1825.9,1825.8,5.47705]
[1743283618795,0.2326839,1825.9,1825.7,5.47713]
[1743283618995,0.2326839,1825.9,1825.7,10.95435]
[1743283619211,0.2326839,1825.9,1825.7,5.47713]
[1743283619523,0.2326839,1825.9,1825.6,6.25244]
[1743283619827,0.2326839,1825.9,1825.6,0.7748]
[1743283620023,0.2326839,1825.9,1825.6,6.25239]
[1743283621820,0.2326839,1825.9,1825.6,11.72985]
[1743283622024,0.2326839,1825.9,1825.6,6.25226]
[1743283623026,0.81045809,1825.9,1825.6,6.25226]
[1743283623233,0.06846757,1825.8,1825.6,6.25226]
[1743283623830,0.2326839,1825.7,1825.6,6.25226]
[1743283624435,0.64624175,1825.9,1825.6,6.25226]
[1743283624622,0.64624175,1825.9,1825.7,5.47721]
[1743283626205,0.06846756,1825.9,1825.7,5.47721]
[1743283628536,0.06846756,1825.9,1825.6,6.2524]
[1743283630107,0.06846756,1825.9,1825.6,5.4776]
[1743283632241,0.22821607,1825.8,1825.6,5.4776]
[1743283632620,0.06846756,1825.9,1825.6,5.4776]
[1743283632809,0.22821607,1825.8,1825.6,5.4776]
[1743283633008,0.06846756,1825.9,1825.6,5.4776]
[1743283633242,0.22821607,1825.8,1825.6,5.4776]
[1743283633646,0.06846756,1825.9,1825.6,5.4776]
[1743283633813,0.22821607,1825.7,1825.6,5.4776]
[1743283634010,0.06846756,1825.9,1825.6,5.4776]
[1743283634213,0.22821607,1825.8,1825.6,5.4776]
[1743283634413,0.06846756,1825.9,1825.6,5.4776]
[1743283634731,0.22821607,1825.8,1825.6,5.4776]
[1743283635044,0.06846756,1825.9,1825.6,5.4776]
[1743283635232,0.22821607,1825.7,1825.6,5.4776]
[1743283635434,0.06846756,1825.9,1825.6,5.4776]
[1743283635636,0.22821607,1825.7,1825.6,5.4776]
[1743283635825,0.06846756,1825.9,1825.7,5.47725]
[1743283637545,2.24314608,1826.1,1825.8,5.47705]
[1743283637728,6.05942315,1826.1,1825.8,5.47705]
[1743283638950,6.05942315,1826.1,1825.8,10.95397]
[1743283639149,5.31160854,1826.1,1825.9,5.47668]
[1743283639466,10.54560854,1826.1,1825.9,5.47668]
[1743283639648,10.47714608,1826.1,1825.9,5.47668]
[1743283640845,1.34570228,1826.0,1825.9,5.47668]
[1743283641554,1.34570228,1826.0,1825.8,10.95408]
[1743283643147,1.34570228,1826.0,1825.9,5.47675]
[1743283647261,1.57555485,1826.0,1825.9,5.47675]
[1743283647470,1.57555485,1826.0,1825.8,5.47704]
[1743283647648,0.22985257,1826.0,1825.8,10.95388]
[1743283648861,0.22985257,1826.0,1825.8,5.47684]
[1743283649064,1.57555485,1826.0,1825.7,6.26064]
[1743283649238,1.57555485,1826.0,1825.7,5.47734]
[1743283649239,1.4141635,1825.9,1825.7,5.47734]
[1743283649642,1.4141635,1825.9,1825.7,10.95456]
[1743283649945,0.22985257,1825.8,1825.7,5.47735]
[1743283650141,1.4141635,1825.9,1825.7,5.47735]
[1743283650544,0.22985257,1825.8,1825.7,5.47735]
[1743283650762,1.4141635,1825.9,1825.7,5.47735]
[1743283650959,0.22985257,1825.8,1825.7,5.47735]
[1743283651164,1.4141635,1825.9,1825.7,5.47735]
[1743283651365,0.22985257,1825.8,1825.7,5.47735]
[1743283651568,1.4141635,1825.9,1825.7,5.47735]
[1743283651735,0.22985257,1825.8,1825.7,5.47735]
[1743283651932,1.4141635,1825.9,1825.7,5.47735]
[1743283652167,0.22985257,1825.8,1825.7,5.47735]
[1743283652468,1.4141635,1825.9,1825.7,5.47735]
[1743283652663,0.22985257,1825.8,1825.7,5.47735]
[1743283653047,1.4141635,1825.9,1825.7,5.47735]
[1743283653279,0.22985257,1825.8,1825.7,5.47735]
[1743283653686,1.34570228,1825.8,1825.6,5.47746]
[1743283653965,0.22985257,1825.8,1825.6,5.47746]
[1743283654152,0.22985257,1825.8,1825.6,10.95489]
[1743283654353,0.22985257,1825.7,1825.6,10.95489]
[1743283654537,1.4141635,1825.9,1825.7,5.47729]
[1743283654735,0.22985257,1825.8,1825.7,5.47729]
[1743283654941,1.70912339,1825.9,1825.7,5.47729]
[1743283655140,0.22985257,1825.8,1825.7,5.47729]
[1743283655340,1.70912339,1825.9,1825.7,5.47729]
[1743283655550,0.22985257,1825.8,1825.7,5.47729]
[1743283655751,0.22985257,1825.8,1825.6,5.47743]
[1743283655752,0.36342111,1825.9,1825.6,10.95487]
[1743283655962,0.22985257,1825.8,1825.6,10.95487]
[1743283656170,0.36342111,1825.9,1825.6,10.95487]
[1743283656470,0.22985257,1825.8,1825.6,10.95487]
[1743283656782,0.36342111,1825.9,1825.6,10.95487]
[1743283656939,0.22985257,1825.8,1825.6,10.95487]
[1743283657143,0.36342111,1825.9,1825.6,10.95487]
[1743283657345,0.22985257,1825.8,1825.6,10.95487]
[1743283657540,0.36342111,1825.9,1825.6,10.95487]
[1743283657740,0.22941207,1825.8,1825.6,10.95487]
[1743283657953,0.36342111,1825.9,1825.6,10.95487]
[1743283658175,0.22941207,1825.8,1825.6,10.95487]
[1743283658375,0.36342111,1825.9,1825.6,10.95487]
[1743283658546,0.22941207,1825.8,1825.6,10.95487]
[1743283658874,0.36342111,1825.9,1825.6,10.95487]
[1743283659376,0.22941207,1825.8,1825.6,10.95487]
[1743283659557,0.36342111,1825.9,1825.6,10.95487]
[1743283659753,0.22941207,1825.8,1825.6,10.95487]
[1743283659988,0.36342111,1825.9,1825.6,10.95487]
[1743283660170,0.22941207,1825.8,1825.6,10.95487]
[1743283660377,0.36342111,1825.9,1825.6,10.95487]
[1743283660684,0.22941207,1825.8,1825.6,10.95487]
[1743283661054,0.36342111,1825.9,1825.6,10.95487]
[1743283661257,0.22941207,1825.7,1825.6,10.95487]
[1743283661457,0.36342111,1825.9,1825.6,10.95487]
[1743283661678,0.22941207,1825.7,1825.6,10.95487]
[1743283661892,0.36342111,1825.9,1825.6,10.95487]
[1743283662491,0.22941207,1825.8,1825.6,5.47743]
[1743283662671,0.22941207,1825.8,1825.5,0.8118]
[1743283662672,7.05217435,1825.8,1825.5,0.8118]
[1743283662873,0.77369018,1825.7,1825.4,6.22845]
[1743283663073,1.00310225,1825.7,1825.4,6.22845]
[1743283663774,1.00310225,1825.7,1825.4,10.95629]
[1743283665261,2.34880453,1825.7,1825.4,10.95629]
[1743283667385,1.00310225,1825.7,1825.4,10.95629]
[1743283667686,1.00310225,1825.7,1825.5,5.47791]
[1743283670587,2.34880453,1825.7,1825.5,5.47791]
[1743283671159,1.00310225,1825.7,1825.6,5.47765]
[1743283671385,0.29788481,1825.7,1825.6,5.47765]
[1743283673588,0.22941207,1825.7,1825.6,5.47765]
[1743283673887,0.22941207,1825.7,1825.5,5.47782]
[1743283674491,0.22941207,1825.7,1825.5,10.95559]
[1743283676592,0.22941207,1825.7,1825.6,5.47765]
[1743283676790,0.22941207,1825.7,1825.5,5.47777]
[1743283677390,0.22941207,1825.7,1825.6,6.28995]
[1743283678269,0.22941207,1825.7,1825.5,5.47777]
[1743283680187,0.22941207,1825.7,1825.5,10.9555]
[1743283681095,0.22941207,1825.7,1825.4,6.29036]
[1743283681288,0.22941207,1825.7,1825.5,5.4779]
[1743283682585,0.22941207,1825.7,1825.5,10.95574]
[1743283684103,0.22941207,1825.7,1825.5,5.47784]
[1743283686710,0.22941207,1825.7,1825.5,10.9556]
[1743283689489,0.22941207,1825.7,1825.6,5.47765]
[1743283690610,0.22941207,1825.7,1825.5,10.9556]
[1743283691710,0.22941207,1825.7,1825.6,5.47765]
[1743283710340,0.22941207,1825.7,1825.5,5.47794]
[1743283711036,0.22941207,1825.7,1825.4,6.2905]
[1743283711331,0.22941207,1825.7,1825.4,5.4782]
[1743283711643,1.57511435,1825.7,1825.4,5.4782]
[1743283711935,1.57511435,1825.7,1825.3,5.47829]
[1743283711936,1.34570228,1825.5,1825.3,5.47829]
[1743283712137,1.41418056,1825.4,1825.1,5.47893]
[1743283712341,1.34570228,1825.3,1825.1,5.47893]
[1743283712708,0.22368522,1825.2,1825.1,5.47893]
[1743283714632,1.5693875,1825.2,1825.0,5.47943]
[1743283715140,1.5693875,1825.2,1825.0,10.95869]
[1743283716136,1.5693875,1825.2,1825.1,5.47915]
[1743283716843,1.5693875,1825.2,1825.0,5.47926]
[1743283718036,1.5693875,1825.2,1825.0,5.47924]
[1743283718427,1.5693875,1825.2,1825.0,5.47939]
[1743283720234,1.5693875,1825.2,1825.0,10.95862]
[1743283720450,1.5693875,1825.2,1825.0,5.47923]
[1743283721707,1.5693875,1825.2,1825.0,10.95846]
[1743283723035,1.5693875,1825.2,1825.1,5.47915]
[1743283735351,1.5693875,1825.2,1825.0,5.47923]
[1743283739665,1.5693875,1825.2,1825.0,10.95849]
[1743283739870,1.5693875,1825.2,1825.1,5.47915]
[1743283742170,0.22368522,1825.2,1825.1,5.47915]
[1743283742374,1.34570228,1825.3,1825.1,5.47915]
[1743283742672,0.28908977,1825.2,1825.1,5.47915]
[1743283744464,0.22059981,1825.2,1825.1,5.47915]
[1743283744766,0.22059981,1825.2,1825.1,6.27385]
[1743283745057,3.0,1825.4,1825.3,5.47855]
[1743283745257,0.95727023,1825.4,1825.3,5.47855]
[1743283745463,3.0,1825.4,1825.3,5.47855]
[1743283745683,5.227,1825.5,1825.4,6.28325]
[1743283746155,5.12625909,1825.7,1825.5,5.47782]
[1743283746673,5.12625909,1825.7,1825.5,10.95563]
[1743283747268,34.229,1825.8,1825.7,5.47735]
[1743283747498,1.34570228,1825.9,1825.7,5.47735]
[1743283747792,3.06846423,1825.9,1825.7,5.47735]
[1743283747951,3.06846423,1825.9,1825.8,5.47705]
[1743283749679,0.0684634,1826.1,1826.0,5.47645]
[1743283749858,6.64015929,1826.2,1826.0,5.47645]
[1743283750057,1.41415929,1826.2,1826.0,10.95266]
[1743283750397,6.57170228,1826.2,1826.0,10.95266]
[1743283752283,0.20994894,1826.1,1826.0,5.47621]
[1743283752482,0.20994894,1826.1,1826.0,6.828831]
[1743283752682,6.57070228,1826.3,1826.1,5.47589]
[1743283752873,6.57070228,1826.3,1826.1,10.95179]
[1743283753486,6.57070228,1826.3,1826.2,5.47585]
[1743283755205,5.225,1826.3,1826.2,5.47585]
[1743283756380,3.0,1826.4,1826.3,5.47555]
[1743283756777,29.005,1826.5,1826.4,5.47525]
[1743283756974,6.56970228,1826.6,1826.5,5.47495]
[1743283757494,1.34570228,1826.7,1826.5,5.47483]
[1743283757798,6.56970228,1826.7,1826.5,5.47483]
[1743283759430,6.56970228,1826.7,1826.5,10.94961]
[1743283760097,0.21259504,1826.6,1826.5,10.94961]
[1743283760476,6.56970228,1826.7,1826.5,10.94961]
[1743283760674,0.21259504,1826.6,1826.5,10.94961]
[1743283761018,6.63714009,1826.8,1826.6,5.47462]
[1743283762521,6.63714009,1826.8,1826.6,5.47455]
[1743283765398,6.56870228,1826.8,1826.7,5.47435]
[1743283765611,6.56870228,1826.8,1826.0,0.547621]
[1743283765909,1.34570228,1826.4,1826.2,6.27753]
[1743283766088,1.34570228,1826.3,1826.1,5.47607]
[1743283766292,0.06844842,1826.2,1826.1,5.47607]
[1743283766488,0.06844842,1826.2,1826.0,6.27808]
[1743283766711,1.4141507,1826.2,1825.9,6.27844]
[1743283766887,1.34570228,1826.1,1825.9,11.75506]
[1743283767313,0.21839171,1826.0,1825.9,11.75506]
[1743283767693,1.34570228,1826.1,1825.9,11.75506]
[1743283768212,0.21839171,1826.0,1825.9,11.75506]
[1743283768508,0.21839171,1826.0,1825.9,6.27832]
[1743283768701,1.34570228,1826.1,1825.9,11.75484]
[1743283768898,0.75742049,1826.2,1825.9,11.75484]
[1743283769086,0.21839171,1826.0,1825.9,5.47652]
[1743283769313,0.75742049,1826.2,1825.9,5.47652]
[1743283769504,0.21839171,1826.0,1825.7,5.47714]
[1743283769710,0.75742049,1826.2,1825.7,5.47714]
[1743283769882,0.21681679,1825.9,1825.7,5.47714]
[1743283770083,0.75742049,1826.2,1825.7,5.47714]
[1743283770291,0.21681679,1825.8,1825.7,5.47714]
[1743283770484,6.23342049,1826.2,1825.7,5.47714]
[1743283770485,6.23342049,1826.2,1825.8,5.47696]
[1743283770679,0.62334205,1826.1,1825.8,5.47696]
[1743283771305,0.62334205,1826.1,1825.6,0.8017]
[1743283771306,0.06845884,1826.0,1825.6,0.8017]
[1743283771512,5.54504884,1826.0,1825.6,0.8017]
[1743283771843,10.76604884,1826.0,1825.6,0.8017]
[1743283772018,1.07660488,1825.9,1825.6,5.47746]
[1743283772594,0.06846421,1825.8,1825.6,5.47746]
[1743283776124,0.06846421,1825.8,1825.5,6.27942]
[1743283776351,0.06846421,1825.8,1825.5,11.75716]
[1743283780450,0.06846421,1825.8,1825.5,10.95546]
[1743283780619,0.9549182,1825.8,1825.5,5.47772]
[1743283781624,2.2427008,1825.7,1825.3,6.30481]
[1743283781855,5.29047475,1825.6,1825.2,5.47883]
[1743283782050,16.24615475,1825.6,1825.2,5.47883]
[1743283782244,0.21102055,1825.5,1825.2,5.47883]
[1743283782423,0.06848299,1825.4,1825.2,5.47883]
[1743283782950,0.21089449,1825.3,1825.2,5.47883]
[1743283783159,0.06848297,1825.4,1825.2,5.47883]
[1743283783325,0.21089449,1825.3,1825.2,5.47883]
[1743283783528,0.06848297,1825.4,1825.2,5.47883]
[1743283783740,0.21089449,1825.3,1825.2,5.47883]
[1743283783945,0.06848297,1825.4,1825.2,5.47883]
[1743283784145,0.21089449,1825.3,1825.2,5.47883]
[1743283784344,0.06848297,1825.4,1825.2,5.47883]
[1743283784554,0.21089449,1825.3,1825.2,5.47883]
[1743283784727,0.06848297,1825.4,1825.2,5.47883]
[1743283784927,0.21089449,1825.3,1825.2,5.47883]
[1743283785157,0.69182502,1825.4,1825.2,5.47883]
[1743283785328,0.21089449,1825.3,1825.2,5.47883]
[1743283785529,0.69182502,1825.4,1825.2,5.47883]
[1743283785847,0.21089449,1825.3,1825.2,5.47883]
[1743283786249,0.69182502,1825.4,1825.2,5.47883]
[1743283786463,0.21089449,1825.3,1825.1,6.30564]
[1743283786643,0.21089449,1825.3,1825.0,10.95869]
[1743283786842,0.63809895,1825.3,1825.0,5.47928]
[1743283787045,0.21089449,1825.2,1825.0,5.47928]
[1743283787358,0.21089449,1825.2,1825.0,10.95852]
[1743283791638,6.17009502,1825.4,1825.0,10.95852]
[1743283791840,0.20812099,1825.1,1825.0,10.95852]
[1743283792174,0.69182502,1825.4,1825.1,5.47911]
[1743283792345,0.69182502,1825.4,1825.1,5.4791]
[1743283794864,2.03859198,1825.4,1825.1,5.4791]
[1743283797067,2.03859198,1825.4,1825.2,5.47874]
[1743283797243,0.20812099,1825.3,1825.1,5.47907]
[1743283797639,2.03859198,1825.4,1825.1,5.47907]
[1743283798169,0.20812099,1825.3,1825.1,5.47907]
[1743283798463,2.03859198,1825.4,1825.1,5.47907]
[1743283798640,0.20812099,1825.2,1825.1,5.47907]
[1743283798839,2.03859198,1825.4,1825.1,5.47907]
[1743283799067,0.20812099,1825.2,1825.1,5.47907]
[1743283799575,2.03859198,1825.4,1825.1,5.47907]
[1743283799776,0.20812099,1825.3,1825.1,5.47907]
[1743283800074,2.03859198,1825.4,1825.1,5.47907]
[1743283801670,7.51704198,1825.4,1825.0,5.47927]
[1743283802039,7.51704198,1825.4,1825.0,10.95848]
[1743283802353,7.51704198,1825.4,1825.1,5.47914]
[1743283802554,2.03859198,1825.4,1825.1,5.47914]
[1743283803775,7.51689198,1825.4,1825.0,5.47921]
[1743283805379,7.51689198,1825.4,1825.1,5.47911]
[1743283805768,2.03859198,1825.4,1825.1,5.47897]
[1743283810087,7.51688198,1825.4,1825.1,5.47897]
[1743283810780,0.69182502,1825.4,1825.1,5.47897]
[1743283810993,2.03859198,1825.4,1825.1,5.47897]
[1743283814485,1.34676696,1825.3,1825.0,5.47932]
[1743283814785,0.06848828,1825.2,1825.0,5.47932]
[1743283816087,0.06848828,1825.2,1824.9,5.47974]
[1743283816392,0.06848828,1825.2,1824.7,5.48011]
[1743283816393,1.34676696,1825.0,1824.7,5.48011]
[1743283816598,1.41526574,1825.0,1824.7,5.48011]
[1743283817090,0.20484277,1824.9,1824.7,5.48011]
[1743283817388,1.41526574,1825.0,1824.7,5.48011]
[1743283817595,2.65265131,1825.0,1824.7,5.48011]
[1743283817806,0.20389684,1824.9,1824.7,5.48011]
[1743283818670,1.41526765,1824.8,1824.4,0.7779]
[1743283818894,1.34676696,1824.7,1824.5,5.48093]
[1743283819087,0.20389684,1824.6,1824.5,5.48093]
[1743283819433,1.34676696,1824.7,1824.4,6.25892]
[1743283819575,0.20389684,1824.6,1824.4,5.48102]
[1743283819774,0.20389684,1824.6,1824.3,6.25944]
[1743283819994,1.41527658,1824.6,1824.3,6.25932]
[1743283820197,0.20389684,1824.5,1824.3,6.25932]
[1743283820405,0.20389684,1824.5,1824.1,0.05]
[1743283820571,1.34676696,1824.3,1824.1,0.05]
[1743283820767,0.0685246,1824.2,1824.1,0.05]
[1743283821000,0.26592433,1824.2,1824.1,0.05]
[1743283821585,0.19739973,1824.2,1824.1,0.05]
[1743283822373,1.54416669,1824.2,1824.1,0.05]
[1743283822672,2.25359305,1824.2,1824.1,0.05]
[1743283824901,0.90682609,1824.2,1824.1,0.05]
[1743283825303,6.38867609,1824.2,1824.1,0.05]
[1743283825599,11.97068909,1824.2,1824.1,0.05]
[1743283829171,15.52068909,1824.2,1824.1,0.05]
[1743283830174,5.48342,1823.7,1823.3,6.28759]